[Event "1.FrauenBL 2018-19"]
[Site "Berlin"]
[Date "2019.03.02"]
[Round "10.8"]
[White "Gvanceladze, Anna"]
[Black "Zschischang, Marine"]
[Result "1-0"]
[ECO "C00"]
[WhiteElo "2264"]
[BlackElo "2069"]
[Annotator "NA"]
[PlyCount "149"]
[EventDate "2018.10.27"]
[EventType "team-tourn"]
[EventCountry "GER"]
[SourceTitle "playchess.com"]
[Source "ChessBase"]
[SourceQuality "1"]
[WhiteTeam "Bad Koenigshofen"]
[BlackTeam "SK Lehrte"]
[TimeControl "40/5400+30:1800+30"]

1. e4 {[%emt 0:00:04]} e6 {[%emt 0:00:01]} 2. Qe2 {[%emt 0:00:07]} d5 {[%emt 0:00:27]} 3. exd5 {[%emt 0:00:19]} Qxd5 {[%emt 0:00:02]} 4. Nf3 {[%emt 0:01:27]} Nf6 {[%emt 0:00:25]} 5. g3 {[%emt 0:02:10]} Qe4 {[%emt 0:01:35]} 6. Qxe4 {[%emt 0:00:00]} Nxe4 {[%emt 0:00:01]} 7. Bg2 {[%emt 0:02:40]} Be7 {[%emt 0:08:30]} 8. Ne5 {[%emt 0:04:28]} Nd6 {[%emt 0:01:06]} 9. O-O {[%emt 0:01:55]} Nd7 {[%emt 0:01:52]} 10. d4 {[%emt 0:04:34]} Nxe5 {[%emt 0:05:03]} 11. dxe5 {[%emt 0:00:07]} Nc4 {[%emt 0:00:26]} 12. Re1 {[%emt 0:00:19]} Bd7 {[%emt 0:06:48]} 13. b3 {[%emt 0:07:04]} Na5 {[%emt 0:00:47]} 14. Ba3 {[%emt 0:04:38]} Bc6 {[%emt 0:03:05]} 15. Bf1 {[%emt 0:02:59]} b6 {[%emt 0:01:48]} 16. Bxe7 {[%emt 0:07:50]} Kxe7 {[%emt 0:01:47]} 17. b4 {[%emt 0:00:07]} Nb7 {[%emt 0:00:17]} 18. Nc3 {[%emt 0:00:53]} a6 {[%emt 0:06:57]} 19. Bd3 {[%emt 0:04:19]} Rhd8 {[%emt 0:09:53]} 20. a3 {[%emt 0:02:07]} h6 {[%emt 0:10:29]} 21. Kf1 {[%emt 0:02:43]} a5 {[%emt 0:09:17]} 22. Ke2 {[%emt 0:01:29]} Ra7 {[%emt 0:02:22]} 23. Ke3 {[%emt 0:02:22]} axb4 {[%emt 0:07:04]} 24. axb4 {[%emt 0:00:26]} Rda8 {[%emt 0:01:24]} 25. Rxa7 {[%emt 0:01:22]} Rxa7 26. h4 {[%emt 0:00:26]} Ra3 {[%emt 0:01:39]} 27. Kd2 {[%emt 0:00:25]} Nd8 {[%emt 0:06:10]} 28. f4 {[%emt 0:01:14]} Bd7 {[%emt 0:02:49]} 29. Re4 {[%emt 0:09:01]} Ra1 {[%emt 0:00:50]} 30. Rc4 {[%emt 0:00:49]} c6 {[%emt 0:00:05]} 31. Be4 {[%emt 0:06:21]} f6 {[%emt 0:01:30]} 32. exf6+ {[%emt 0:00:54]} gxf6 {[%emt 0:00:01]} 33. Ne2 {[%emt 0:01:17]} e5 {[%emt 0:01:54]} 34. Bf3 {[%emt 0:06:05]} Rb1 {[%emt 0:02:33]} 35. fxe5 {[%emt 0:03:45]} fxe5 {[%emt 0:00:01]} 36. Bg4 {[%emt 0:00:13]} Be8 {[%emt 0:01:14]} 37. Nc1 {[%emt 0:03:23]} Bg6 {[%emt 0:00:56]} 38. Bf3 {[%emt 0:02:36]} b5 {[%emt 0:02:00]} 39. Rc3 {[%emt 0:11:59]} Rxb4 {[%emt 0:00:16]} 40. Nb3 {[%emt 0:04:16]} Kd6 {[%emt 0:02:23]} 41. Be2 {[%emt 0:08:58]} Ne6 {[%emt 0:08:26]} 42. Rf3 {[%emt 0:00:21]} Ke7 {[%emt 0:00:51]} 43. Re3 {[%emt 0:01:21]} e4 {[%emt 0:06:03]} 44. Rc3 {[%emt 0:00:46]} Kd6 {[%emt 0:00:39]} 45. g4 {[%emt 0:01:04]} c5 {[%emt 0:04:27]} 46. Rg3 {[%emt 0:02:27]} Ke5 {[%emt 0:04:25]} 47. Bd1 {[%emt 0:04:54]} c4 {[%emt 0:03:38]} 48. Nc1 {[%emt 0:02:17]} Rb1 {[%emt 0:00:24]} 49. Ra3 {[%emt 0:01:28]} Nc5 {[%emt 0:02:36]} 50. Ne2 {[%emt 0:01:05]} Na4 {[%emt 0:01:07]} 51. h5 {[%emt 0:03:40]} Be8 {[%emt 0:00:50]} 52. Re3 {[%emt 0:00:08]} b4 {[%emt 0:01:15]} 53. Ng3 {[%emt 0:00:46]} c3+ {[%emt 0:01:47]} 54. Ke2 {[%emt 0:00:26]} Bb5+ {[%emt 0:00:43]} 55. Kf2 {[%emt 0:00:36]} Rxd1 {[%emt 0:01:30]} 56. Rxe4+ {[%emt 0:00:01]} Kf6 {[%emt 0:00:15]} 57. Rxb4 {[%emt 0:00:01]} Bd7 {[%emt 0:00:22]} 58. Kf3 {[%emt 0:00:45]} Bc6+ {[%emt 0:02:11]} 59. Kf4 {[%emt 0:01:01]} Ke6 {[%emt 0:00:58]} 60. Nf5 {[%emt 0:00:45]} Rf1+ {[%emt 0:00:57]} 61. Ke3 {[%emt 0:00:39]} Nb2 {[%emt 0:00:41]} 62. Nxh6 {[%emt 0:01:51]} Rc1 {[%emt 0:00:55]} 63. Nf5 {[%emt 0:00:12]} Rg1 {[%emt 0:00:14]} 64. h6 {[%emt 0:00:31]} Rh1 {[%emt 0:00:37]} 65. Kf4 {[%emt 0:00:37]} Na4 {[%emt 0:00:41]} 66. Nd4+ {[%emt 0:00:19]} Kd5 {[%emt 0:00:32]} 67. Nxc6 {[%emt 0:00:06]} Kxc6 {[%emt 0:00:32]} 68. Rxa4 {[%emt 0:00:02]} Kb5 {[%emt 0:00:07]} 69. Ra3 {[%emt 0:00:14]} Kb4 {[%emt 0:00:29]} 70. Rb3+ {[%emt 0:00:05]} Kc4 {[%emt 0:00:08]} 71. Rb6 {[%emt 0:00:53]} Rh2 {[%emt 0:00:05]} 72. Kg3 {[%emt 0:00:04]} Rxc2 {[%emt 0:00:08]} 73. h7 {[%emt 0:00:06]} Rb2 {[%emt 0:00:15]} 74. Rc6+ {[%emt 0:00:06]} Kd5 {[%emt 0:00:50]} 75. h8=Q {[%emt 0:00:09] Kd7 [%clk ]} 1-0

[Event "1.FrauenBL 2018-19"]
[Site "Berlin"]
[Date "2019.03.02"]
[Round "10.8"]
[White "Antolak, Julia"]
[Black "Boric, Elena"]
[Result "1-0"]
[ECO "C06"]
[WhiteElo "2207"]
[BlackElo "2202"]
[Annotator "NA"]
[PlyCount "85"]
[EventDate "2018.10.27"]
[EventType "team-tourn"]
[EventCountry "GER"]
[SourceTitle "playchess.com"]
[Source "ChessBase"]
[SourceQuality "1"]
[WhiteTeam "TuRa Harksheide"]
[BlackTeam "FC Bayern Muenchen"]
[TimeControl "40/5400+30:1800+30"]

1. e4 {[%emt 0:00:06]} e6 {[%emt 0:00:00]} 2. d4 {[%emt 0:00:05]} d5 {[%emt 0:00:13]} 3. Nd2 {[%emt 0:00:04]} Nf6 {[%emt 0:00:09]} 4. e5 {[%emt 0:00:04]} Nfd7 {[%emt 0:00:00]} 5. Bd3 {[%emt 0:00:05]} c5 {[%emt 0:00:20]} 6. c3 {[%emt 0:00:08]} Nc6 {[%emt 0:00:11]} 7. Ne2 {[%emt 0:00:09]} cxd4 {[%emt 0:00:20]} 8. cxd4 {[%emt 0:00:32]} f6 {[%emt 0:00:18]} 9. exf6 {[%emt 0:00:00]} Nxf6 {[%emt 0:00:08]} 10. O-O {[%emt 0:00:02]} Bd6 {[%emt 0:00:11]} 11. Nf3 {[%emt 0:00:14]} Qc7 {[%emt 0:00:36]} 12. Bg5 {[%emt 0:00:57]} O-O {[%emt 0:00:40]} 13. Bh4 {[%emt 0:00:00]} Bd7 {[%emt 0:00:00]} 14. Bg3 {[%emt 0:09:59]} Rac8 {[%emt 0:24:34]} 15. Rc1 {[%emt 0:15:15]} Bxg3 {[%emt 0:00:41]} 16. hxg3 {[%emt 0:00:00]} Qd6 {[%emt 0:00:00]} 17. Nf4 {[%emt 0:02:00]} e5 {[%emt 0:18:56]} 18. Rxc6 {[%emt 0:23:29]} Qxc6 {[%emt 0:05:06]} 19. dxe5 {[%emt 0:00:21]} Ne4 {[%emt 0:06:25]} 20. Bb1 {[%emt 0:03:46]} Rxf4 {[%emt 0:14:04]} 21. gxf4 {[%emt 0:00:30]} Bg4 {[%emt 0:01:16]} 22. Bxe4 {[%emt 0:15:35]} dxe4 {[%emt 0:00:27]} 23. Nd4 {[%emt 0:01:14]} Qd7 {[%emt 0:00:00]} 24. Qb3+ {[%emt 0:00:41]} Kh8 {[%emt 0:07:45]} 25. Nb5 {[%emt 0:10:45]} Be2 {[%emt 0:06:03]} 26. Nd6 {[%emt 0:02:01]} Bxf1 {[%emt 0:02:26]} 27. Nxc8 {[%emt 0:02:47]} Qxc8 {[%emt 0:02:04]} 28. Kxf1 {[%emt 0:00:00]} Qc1+ {[%emt 0:01:50]} 29. Ke2 {[%emt 0:03:54]} Qxf4 {[%emt 0:00:23]} 30. Qd5 {[%emt 0:00:23]} h6 {[%emt 0:01:21]} 31. e6 {[%emt 0:00:00]} Qc7 {[%emt 0:00:00]} 32. Qxe4 {[%emt 0:08:14]} Qe7 {[%emt 0:00:00]} 33. Qd5 {[%emt 0:00:00]} Kg8 {[%emt 0:07:39]} 34. g3 {[%emt 0:00:00]} a6 {[%emt 0:01:32]} 35. Qd7 {[%emt 0:00:00]} Kf8 {[%emt 0:00:23]} 36. Qc8+ {[%emt 0:00:00]} Qe8 {[%emt 0:00:04]} 37. Qxe8+ {[%emt 0:00:04]} Kxe8 {[%emt 0:00:07]} 38. f4 {[%emt 0:00:02]} g6 {[%emt 0:02:04]} 39. g4 {[%emt 0:00:21]} Ke7 {[%emt 0:00:28]} 40. f5 {[%emt 0:00:15]} Kf6 {[%emt 0:00:43]} 41. Kf3 {[%emt 0:35:25]} h5 {[%emt 0:04:02]} 42. gxh5 {[%emt 0:00:00]} gxf5 {[%emt 0:00:00]} 43. h6 {[%emt 0:00:00]} 1-0

[Event "1.FrauenBL 2018-19"]
[Site "Berlin"]
[Date "2019.03.02"]
[Round "10.9"]
[White "Burchardt, Brigitte"]
[Black "Bluhm, Sonja Maria"]
[Result "0-1"]
[ECO "C54"]
[WhiteElo "2158"]
[BlackElo "2222"]
[Annotator "NA"]
[PlyCount "158"]
[EventDate "2018.10.27"]
[EventType "team-tourn"]
[EventCountry "GER"]
[SourceTitle "playchess.com"]
[Source "ChessBase"]
[SourceQuality "1"]
[WhiteTeam "Pankow"]
[BlackTeam "Hofheim"]
[TimeControl "40/5400+30:1800+30"]

1. e4 {[%emt 0:00:02]} e5 {[%emt 0:00:10]} 2. Bc4 {[%emt 0:00:05]} Nf6 {[%emt 0:00:06]} 3. d3 {[%emt 0:00:05]} Nc6 {[%emt 0:00:11]} 4. Nf3 {[%emt 0:00:45]} Bc5 {[%emt 0:00:00]} 5. O-O {[%emt 0:00:00]} d6 {[%emt 0:00:29]} 6. c3 {[%emt 0:02:04]} Bb6 {[%emt 0:09:20]} 7. h3 {[%emt 0:01:43]} h6 {[%emt 0:00:53]} 8. Re1 {[%emt 0:06:25]} Qe7 {[%emt 0:05:04]} 9. Be3 {[%emt 0:06:54]} g5 {[%emt 0:12:20]} 10. Nbd2 {[%emt 0:15:57]} g4 {[%emt 0:21:27]} 11. hxg4 {[%emt 0:00:05]} Bxg4 {[%emt 0:00:48]} 12. Qa4 {[%emt 0:16:43]} Bd7 {[%emt 0:28:19]} 13. Bxb6 {[%emt 0:07:59]} Nd4 {[%emt 0:04:13]} 14. Qd1 {[%emt 0:01:57]} Nxf3+ {[%emt 0:00:00]} 15. Qxf3 {[%emt 0:02:00]} axb6 {[%emt 0:00:27]} 16. d4 {[%emt 0:02:15]} Rg8 {[%emt 0:00:00]} 17. Bf1 {[%emt 0:11:00]} Ng4 {[%emt 0:03:24]} 18. g3 {[%emt 0:02:19]} h5 {[%emt 0:00:33]} 19. Bg2 {[%emt 0:03:07]} h4 {[%emt 0:04:39]} 20. Nf1 {[%emt 0:00:30]} Rg6 {[%emt 0:00:50]} 21. Qd3 {[%emt 0:01:18]} Qf6 {[%emt 0:00:00]} 22. Re2 {[%emt 0:09:05]} Nh6 {[%emt 0:00:00]} 23. f4 {[%emt 0:02:46]} hxg3 {[%emt 0:03:00]} 24. f5 {[%emt 0:03:23]} Rg8 {[%emt 0:00:51]} 25. Re3 {[%emt 0:00:27]} O-O-O {[%emt 0:01:05]} 26. a4 {[%emt 0:00:00]} exd4 {[%emt 0:02:47]} 27. cxd4 {[%emt 0:02:02]} d5 {[%emt 0:00:19]} 28. a5 {[%emt 0:01:50]} b5 {[%emt 0:00:43]} 29. a6 {[%emt 0:01:04]} bxa6 {[%emt 0:00:25]} 30. e5 {[%emt 0:00:33]} Qxf5 {[%emt 0:01:25]} 31. Nxg3 {[%emt 0:01:00]} Qxd3 {[%emt 0:00:49]} 32. Rxd3 {[%emt 0:00:01]} Rg6 {[%emt 0:00:17]} 33. Kf2 {[%emt 0:00:46]} Ng4+ {[%emt 0:01:04]} 34. Ke2 {[%emt 0:00:19]} b4 {[%emt 0:00:21]} 35. Bxd5 {[%emt 0:00:10]} Bb5 {[%emt 0:00:20]} 36. Be4 {[%emt 0:00:39]} Rgg8 {[%emt 0:00:38]} 37. Nf5 {[%emt 0:00:12]} Rh8 {[%emt 0:00:52]} 38. Rg1 {[%emt 0:01:04]} Rh2+ {[%emt 0:00:40]} 39. Kf3 {[%emt 0:00:15]} Bxd3 {[%emt 0:00:31]} 40. Bxd3 {[%emt 0:00:18]} Rh3+ {[%emt 0:00:33]} 41. Ke2 {[%emt 0:03:55]} Rh2+ {[%emt 0:02:39]} 42. Ke1 {[%emt 0:03:12]} Nxe5 {[%emt 0:12:25]} 43. Bxa6+ {[%emt 0:08:43]} Kd7 {[%emt 0:01:25]} 44. dxe5 {[%emt 0:01:25]} Ra8 {[%emt 0:00:27]} 45. Be2 {[%emt 0:00:00]} Ra1+ {[%emt 0:00:37]} 46. Bd1 {[%emt 0:00:00]} Rxb2 {[%emt 0:01:31]} 47. Ne3 {[%emt 0:00:00]} c5 {[%emt 0:00:00]} 48. Rf1 {[%emt 0:00:00]} Ke6 {[%emt 0:05:37]} 49. Rf6+ {[%emt 0:00:00]} Kxe5 {[%emt 0:00:00]} 50. Rxf7 {[%emt 0:00:00]} Ke4 {[%emt 0:02:09]} 51. Nf1 {[%emt 0:00:00]} Kd3 {[%emt 0:00:00]} 52. Rd7+ {[%emt 0:01:04]} Kc4 {[%emt 0:02:31]} 53. Ne3+ {[%emt 0:02:03]} Kb5 {[%emt 0:00:00]} 54. Rb7+ {[%emt 0:00:20]} Kc6 {[%emt 0:00:25]} 55. Rf7 {[%emt 0:09:50]} b3 {[%emt 0:00:31]} 56. Rf6+ {[%emt 0:00:00]} Kb5 {[%emt 0:01:20]} 57. Rf8 {[%emt 0:01:51]} Rc1 {[%emt 0:03:09]} 58. Rb8+ {[%emt 0:00:00]} Kc6 {[%emt 0:00:16]} 59. Nf1 {[%emt 0:00:00]} Kc7 {[%emt 0:00:00]} 60. Rb5 {[%emt 0:00:00]} Rbb1 {[%emt 0:02:31]} 61. Ne3 {[%emt 0:00:32]} Kc6 {[%emt 0:00:48]} 62. Rb8 {[%emt 0:00:08]} c4 {[%emt 0:00:16]} 63. Kd2 {[%emt 0:00:53]} c3+ {[%emt 0:00:18]} 64. Kd3 {[%emt 0:00:05]} Rxd1+ {[%emt 0:00:00]} 65. Kxc3 {[%emt 0:02:54]} Rdc1+ {[%emt 0:02:30]} 66. Kd2 {[%emt 0:00:16]} Rh1 {[%emt 0:00:00]} 67. Nc4 {[%emt 0:01:54]} Rh2+ {[%emt 0:00:43]} 68. Kd3 {[%emt 0:00:11]} Rh3+ {[%emt 0:01:12]} 69. Kd2 {[%emt 0:00:14]} Rh2+ {[%emt 0:00:14]} 70. Kd3 {[%emt 0:00:06]} Kc5 {[%emt 0:00:44]} 71. Rc8+ {[%emt 0:00:50]} Kd5 {[%emt 0:00:10]} 72. Rd8+ {[%emt 0:00:21]} Kc6 {[%emt 0:00:00]} 73. Rb8 {[%emt 0:00:10]} Rd1+ {[%emt 0:00:00]} 74. Kc3 {[%emt 0:03:21]} Rc1+ {[%emt 0:02:03]} 75. Kb4 {[%emt 0:03:50]} Rh4 {[%emt 0:00:47]} 76. Kxb3 {[%emt 0:00:36]} Rhxc4 {[%emt 0:00:10]} 77. Rc8+ {[%emt 0:00:20]} Kd5 {[%emt 0:00:11]} 78. Rh8 Rf4 79. Z0 Ke6 0-1

[Event "1.FrauenBL 2018-19"]
[Site "Berlin"]
[Date "2019.03.02"]
[Round "10.9"]
[White "Mayrhuber, Nikola"]
[Black "Gosciniak, Maria"]
[Result "0-1"]
[ECO "A56"]
[WhiteElo "1983"]
[BlackElo "2116"]
[Annotator "NA"]
[PlyCount "52"]
[EventDate "2018.10.27"]
[EventType "team-tourn"]
[EventCountry "GER"]
[SourceTitle "playchess.com"]
[Source "ChessBase"]
[SourceQuality "1"]
[WhiteTeam "FC Bayern Muenchen"]
[BlackTeam "TuRa Harksheide"]
[TimeControl "40/5400+30:1800+30"]

1. d4 {[%emt 0:00:06]} Nf6 {[%emt 0:00:19]} 2. c4 {[%emt 0:00:05]} c5 {[%emt 0:00:45]} 3. d5 {[%emt 0:00:07]} d6 {[%emt 0:00:04]} 4. Nf3 {[%emt 0:00:19]} e5 {[%emt 0:01:11]} 5. Nc3 {[%emt 0:04:25]} Be7 {[%emt 0:00:26]} 6. g3 {[%emt 0:00:40]} O-O {[%emt 0:00:34]} 7. Bg2 {[%emt 0:01:56]} a6 {[%emt 0:01:06]} 8. a4 {[%emt 0:01:13]} Ne8 {[%emt 0:11:17]} 9. e4 {[%emt 0:02:42]} f5 {[%emt 0:01:08]} 10. exf5 {[%emt 0:01:14]} Bxf5 {[%emt 0:00:42]} 11. O-O {[%emt 0:00:55]} Nd7 {[%emt 0:06:15]} 12. Nd2 {[%emt 0:04:27]} Nef6 {[%emt 0:11:12]} 13. Nde4 {[%emt 0:03:58]} Qe8 {[%emt 0:03:40]} 14. Ng5 {[%emt 0:06:11]} Qg6 {[%emt 0:06:51]} 15. Ne6 {[%emt 0:09:37]} Rfc8 {[%emt 0:01:43]} 16. Re1 {[%emt 0:05:30]} h6 {[%emt 0:04:30]} 17. Bf3 {[%emt 0:20:48]} Rab8 {[%emt 0:14:41]} 18. a5 {[%emt 0:05:44]} Re8 {[%emt 0:02:51]} 19. Nc7 {[%emt 0:02:17]} Rf8 {[%emt 0:01:23]} 20. Ne6 {[%emt 0:00:20]} Rf7 {[%emt 0:01:12]} 21. Kg2 {[%emt 0:05:51]} Nf8 {[%emt 0:02:25]} 22. Nxc5 {[%emt 0:07:57]} dxc5 {[%emt 0:01:33]} 23. d6 {[%emt 0:00:19]} Rd8 {[%emt 0:10:15]} 24. Nd5 {[%emt 0:03:34]} Bxd6 {[%emt 0:01:52]} 25. Nxf6+ {[%emt 0:02:54]} Qxf6 {[%emt 0:00:27]} 26. Bd5 {[%emt 0:04:16]} Be6 {[%emt 0:00:06]} 0-1

[Event "1.FrauenBL 2018-19"]
[Site "Berlin"]
[Date "2019.03.02"]
[Round "10.10"]
[White "Brandt, Carina"]
[Black "Vidonyak, Nellya"]
[Result "0-1"]
[ECO "C41"]
[WhiteElo "2076"]
[BlackElo "2111"]
[Annotator "NA"]
[PlyCount "140"]
[EventDate "2018.10.27"]
[EventType "team-tourn"]
[EventCountry "GER"]
[SourceTitle "playchess.com"]
[Source "ChessBase"]
[SourceQuality "1"]
[WhiteTeam "TuRa Harksheide"]
[BlackTeam "FC Bayern Muenchen"]
[TimeControl "40/5400+30:1800+30"]

1. e4 {[%emt 0:00:03]} d6 {[%emt 0:00:39]} 2. d4 {[%emt 0:00:44]} Nf6 {[%emt 0:00:00]} 3. Nc3 {[%emt 0:00:06]} Nbd7 {[%emt 0:01:27]} 4. Nf3 {[%emt 0:00:11]} e5 {[%emt 0:00:08]} 5. g4 {[%emt 0:00:31]} g6 {[%emt 0:00:00]} 6. g5 {[%emt 0:00:06]} Nh5 {[%emt 0:00:00]} 7. Be3 {[%emt 0:00:18]} c6 {[%emt 0:00:00]} 8. Be2 {[%emt 0:03:22]} Be7 {[%emt 0:03:45]} 9. h4 {[%emt 0:00:38]} a6 {[%emt 0:05:24]} 10. a4 {[%emt 0:11:28]} a5 {[%emt 0:03:02]} 11. Nh2 {[%emt 0:05:34]} Nf4 {[%emt 0:08:06]} 12. Bxf4 {[%emt 0:06:03]} exf4 {[%emt 0:00:00]} 13. Qd2 {[%emt 0:00:00]} h6 {[%emt 0:06:47]} 14. Qxf4 {[%emt 0:16:19]} hxg5 {[%emt 0:06:00]} 15. hxg5 {[%emt 0:00:00]} Nf8 {[%emt 0:04:28]} 16. Qg3 {[%emt 0:00:00]} Bxg5 {[%emt 0:29:02]} 17. Qg1 {[%emt 0:00:00]} Bf4 {[%emt 0:02:12]} 18. Nf3 {[%emt 0:27:23]} Rxh1 {[%emt 0:01:16]} 19. Qxh1 {[%emt 0:00:01]} Qb6 {[%emt 0:00:01]} 20. Rb1 {[%emt 0:00:00]} g5 {[%emt 0:02:37]} 21. Qh8 {[%emt 0:07:37]} g4 {[%emt 0:00:00]} 22. Nd2 {[%emt 0:02:05]} Be6 {[%emt 0:07:05]} 23. Nc4 {[%emt 0:03:49]} Bxc4 {[%emt 0:00:00]} 24. Bxc4 {[%emt 0:00:02]} O-O-O {[%emt 0:05:40]} 25. Qf6 {[%emt 0:02:08]} Bh2 {[%emt 0:04:54]} 26. Bxf7 {[%emt 0:01:31]} g3 {[%emt 0:01:21]} 27. Qh4 {[%emt 0:03:48]} Qxd4 {[%emt 0:01:46]} 28. fxg3 {[%emt 0:00:18]} Qg1+ {[%emt 0:02:09]} 29. Kd2 {[%emt 0:00:07]} Qd4+ {[%emt 0:01:48]} 30. Ke2 {[%emt 0:03:00]} Bg1 {[%emt 0:00:59]} 31. Qg4+ {[%emt 0:00:45]} Kc7 {[%emt 0:01:24]} 32. Qf3 {[%emt 0:01:45]} Nd7 {[%emt 0:00:42]} 33. Rd1 {[%emt 0:00:47]} Qc5 {[%emt 0:01:45]} 34. Be6 {[%emt 0:01:49]} Rf8 {[%emt 0:01:04]} 35. Bf5 {[%emt 0:00:06]} Rh8 {[%emt 0:00:45]} 36. Bxd7 {[%emt 0:03:18]} Rh2+ {[%emt 0:00:00]} 37. Ke1 {[%emt 0:00:01]} Rf2 {[%emt 0:01:26]} 38. Qd3 {[%emt 0:00:56]} Kxd7 {[%emt 0:00:00]} 39. Rd2 {[%emt 0:02:22]} Rf7 {[%emt 0:01:01]} 40. Re2 {[%emt 0:00:53]} Bd4 {[%emt 0:00:35]} 41. Nd1 {[%emt 0:03:48]} Be5 {[%emt 0:06:43]} 42. Qb3 {[%emt 0:13:11]} Qb4+ {[%emt 0:01:25]} 43. Qxb4 {[%emt 0:00:07]} Bxg3+ {[%emt 0:00:09]} 44. Kd2 {[%emt 0:00:16]} axb4 {[%emt 0:09:11]} 45. Rg2 {[%emt 0:02:04]} Be5 {[%emt 0:02:04]} 46. b3 {[%emt 0:00:59]} Bd4 {[%emt 0:00:00]} 47. Kd3 {[%emt 0:02:04]} c5 {[%emt 0:00:00]} 48. Rg6 {[%emt 0:02:23]} Rf3+ {[%emt 0:00:00]} 49. Ke2 {[%emt 0:00:05]} Rf4 {[%emt 0:00:00]} 50. Kd3 {[%emt 0:00:17]} Rh4 {[%emt 0:00:36]} 51. Rg2 {[%emt 0:01:02]} Rh3+ {[%emt 0:01:16]} 52. Ke2 {[%emt 0:00:00]} Ke6 {[%emt 0:02:02]} 53. Rg4 {[%emt 0:02:14]} Ke5 {[%emt 0:03:00]} 54. Kd2 {[%emt 0:00:14]} Bc3+ {[%emt 0:02:39]} 55. Ke2 {[%emt 0:03:15]} Rh2+ {[%emt 0:01:28]} 56. Nf2 {[%emt 0:00:00]} Bd4 {[%emt 0:00:17]} 57. Rg5+ {[%emt 0:02:49]} Ke6 {[%emt 0:04:04]} 58. Rf5 {[%emt 0:00:06]} d5 {[%emt 0:00:00]} 59. Rxd5 {[%emt 0:00:51]} Rxf2+ {[%emt 0:00:00]} 60. Kd3 {[%emt 0:00:04]} b6 {[%emt 0:03:14]} 61. Rh5 {[%emt 0:01:43]} Rf3+ {[%emt 0:01:13]} 62. Kc4 {[%emt 0:01:50]} Rc3+ {[%emt 0:00:00]} 63. Kb5 {[%emt 0:00:04]} Rxc2 {[%emt 0:00:04]} 64. Rh6+ {[%emt 0:01:20]} Ke5 {[%emt 0:00:10]} 65. Rxb6 {[%emt 0:00:25]} c4 {[%emt 0:01:51]} 66. a5 {[%emt 0:00:55]} cxb3 {[%emt 0:00:41]} 67. Ka4 {[%emt 0:01:15]} Bxb6 {[%emt 0:01:15]} 68. Kxb3 {[%emt 0:00:00]} Rc6 {[%emt 0:00:23]} 69. Z0 Kd4 70. Z0 {Bd4 [%clk ] --- [%clk ] b3+ [%clk ] --- [%clk ]} Rc2 {Qf7 [%clk ] e7 [%clk ]} 0-1

[Event "1.FrauenBL 2018-19"]
[Site "Berlin"]
[Date "2019.03.02"]
[Round "10.11"]
[White "Ankerst, Milka"]
[Black "Sherif, Amina"]
[Result "1-0"]
[ECO "C00"]
[WhiteElo "1996"]
[BlackElo "1954"]
[Annotator "NA"]
[PlyCount "72"]
[EventDate "2018.10.27"]
[EventType "team-tourn"]
[EventCountry "GER"]
[SourceTitle "playchess.com"]
[Source "ChessBase"]
[SourceQuality "1"]
[WhiteTeam "FC Bayern Muenchen"]
[BlackTeam "TuRa Harksheide"]
[TimeControl "40/5400+30:1800+30"]

1. e4 {[%emt 0:00:34]} c5 {[%emt 0:00:14]} 2. Nf3 {[%emt 0:00:24]} e6 {[%emt 0:00:28]} 3. d3 {[%emt 0:00:31]} Nc6 {[%emt 0:01:48]} 4. g3 {[%emt 0:00:29]} d5 {[%emt 0:01:06]} 5. Nbd2 {[%emt 0:00:26]} Nf6 {[%emt 0:01:24]} 6. Bg2 {[%emt 0:00:44]} Be7 {[%emt 0:01:48]} 7. O-O {[%emt 0:00:37]} Qc7 {[%emt 0:01:33]} 8. Re1 {[%emt 0:01:40]} b6 {[%emt 0:01:09]} 9. e5 {[%emt 0:03:21]} Nd7 {[%emt 0:00:14]} 10. Qe2 {[%emt 0:00:29]} Bb7 {[%emt 0:01:25]} 11. c3 {[%emt 0:01:22]} O-O-O {[%emt 0:13:08]} 12. Nf1 {[%emt 0:05:43]} Rdg8 {[%emt 0:08:51]} 13. Bd2 {[%emt 0:09:43]} g5 {[%emt 0:04:54]} 14. h3 {[%emt 0:00:33]} g4 {[%emt 0:24:10]} 15. hxg4 {[%emt 0:01:34]} Rxg4 {[%emt 0:01:20]} 16. N1h2 {[%emt 0:03:53]} Rg7 {[%emt 0:02:44]} 17. b4 {[%emt 0:09:15]} cxb4 {[%emt 0:05:11]} 18. cxb4 {[%emt 0:02:57]} Bxb4 {[%emt 0:01:42]} 19. Bxb4 {[%emt 0:03:06]} Nxb4 {[%emt 0:00:05]} 20. Rac1 {[%emt 0:00:27]} Nc6 {[%emt 0:00:09]} 21. Nd4 {[%emt 0:00:29]} Ndb8 {[%emt 0:03:11]} 22. Nb5 {[%emt 0:01:31]} Qd7 {[%emt 0:00:30]} 23. Nxa7+ {[%emt 0:00:51]} Kd8 {[%emt 0:00:11]} 24. Qb2 {[%emt 0:01:51]} Ke8 {[%emt 0:04:29]} 25. Qxb6 {[%emt 0:01:43]} h5 {[%emt 0:04:13]} 26. Nb5 {[%emt 0:02:29]} Kf8 {[%emt 0:01:32]} 27. Nf3 {[%emt 0:04:02]} Kg8 {[%emt 0:07:08]} 28. a4 {[%emt 0:01:40]} h4 {[%emt 0:04:15]} 29. Nxh4 {[%emt 0:04:54]} Rxh4 {[%emt 0:00:36]} 30. gxh4 {[%emt 0:00:38]} d4 {[%emt 0:03:40]} 31. Kf1 {[%emt 0:01:09]} Rxg2 {[%emt 0:01:15]} 32. Nd6 {[%emt 0:03:28]} Rh2 {[%emt 0:01:21]} 33. Qxb7 {[%emt 0:03:35]} Z0 34. Qxd7 Z0 35. Ra1 Z0 36. Nc8 Z0 {Ke1 [%clk ]} 1-0

[Event "1.FrauenBL 2018-19"]
[Site "Berlin"]
[Date "2019.03.02"]
[Round "10.12"]
[White "Waechter, Nathalie"]
[Black "Spiel, Marianne"]
[Result "1-0"]
[ECO "D36"]
[WhiteElo "2038"]
[BlackElo "1901"]
[Annotator "NA"]
[PlyCount "67"]
[EventDate "2018.10.27"]
[EventType "team-tourn"]
[EventCountry "GER"]
[SourceTitle "playchess.com"]
[Source "ChessBase"]
[SourceQuality "1"]
[WhiteTeam "TuRa Harksheide"]
[BlackTeam "FC Bayern Muenchen"]
[TimeControl "40/5400+30:1800+30"]

1. d4 {[%emt 0:00:02]} Nf6 {[%emt 0:00:00]} 2. c4 {[%emt 0:00:08]} e6 {[%emt 0:00:26]} 3. Nf3 {[%emt 0:00:05]} d5 {[%emt 0:00:00]} 4. Bg5 {[%emt 0:00:16]} c6 {[%emt 0:01:48]} 5. cxd5 {[%emt 0:00:22]} exd5 {[%emt 0:00:00]} 6. Nc3 {[%emt 0:00:13]} Be7 {[%emt 0:00:00]} 7. Qc2 {[%emt 0:07:28]} O-O {[%emt 0:07:33]} 8. e3 {[%emt 0:01:13]} Be6 {[%emt 0:00:00]} 9. Bd3 {[%emt 0:00:00]} Nbd7 {[%emt 0:06:07]} 10. O-O {[%emt 0:00:00]} h6 {[%emt 0:00:48]} 11. Bh4 {[%emt 0:00:00]} g5 {[%emt 0:00:00]} 12. Bg3 {[%emt 0:00:00]} Nh5 {[%emt 0:10:39]} 13. Bh7+ {[%emt 0:32:30]} Kg7 {[%emt 0:02:20]} 14. Be5+ {[%emt 0:07:00]} Nxe5 {[%emt 0:00:54]} 15. Nxe5 {[%emt 0:00:40]} Nf6 {[%emt 0:18:52]} 16. Bd3 {[%emt 0:01:06]} Bd6 {[%emt 0:01:06]} 17. f4 {[%emt 0:02:06]} Ng4 {[%emt 0:00:00]} 18. Qe2 {[%emt 0:05:38]} Nxe5 {[%emt 0:10:15]} 19. dxe5 {[%emt 0:00:34]} Bc5 {[%emt 0:02:25]} 20. f5 {[%emt 0:00:46]} Bd7 {[%emt 0:12:40]} 21. f6+ {[%emt 0:06:23]} Kh8 {[%emt 0:01:03]} 22. Na4 {[%emt 0:10:32]} Bb6 {[%emt 0:00:00]} 23. Nxb6 {[%emt 0:00:37]} Qxb6 {[%emt 0:00:13]} 24. Kh1 {[%emt 0:02:07]} g4 {[%emt 0:05:33]} 25. Qf2 {[%emt 0:01:07]} Rg8 {[%emt 0:00:00]} 26. Rae1 {[%emt 0:09:55]} Qd8 {[%emt 0:07:36]} 27. e4 {[%emt 0:01:00]} Be6 {[%emt 0:00:00]} 28. exd5 {[%emt 0:01:49]} Qxd5 {[%emt 0:00:00]} 29. Bb1 {[%emt 0:03:05]} Qd8 {[%emt 0:05:42]} 30. Rd1 {[%emt 0:00:04]} Qf8 {[%emt 0:00:12]} 31. Rd6 {[%emt 0:02:07]} Rg5 {[%emt 0:02:11]} 32. Qc2 {[%emt 0:01:23]} Qg8 {[%emt 0:00:42]} 33. Rxe6 {[%emt 0:00:21]} fxe6 {[%emt 0:05:04]} 34. f7 {[%emt 0:00:04]} 1-0